[Event "Early-Titled-Tuesday-Blitz-May-07-2024"]
[Site "Chess.com"]
[Date "2024.05.07"]
[Round "3"]
[White "cristianserban1"]
[Black "Zampronha1971"]
[Result "1-0"]
[WhiteElo "2632"]
[BlackElo "2463"]
[TimeControl "180+1"]
[EndTime "8:29:30 PDT"]
[Termination "cristianserban1 won by resignation"]

1. Nf3 {[%clk 0:03:00.9]} 1... Nf6 {[%clk 0:02:59]} 2. b3 {[%clk 0:03:01.3]}
2... d6 {[%clk 0:02:58.1]} 3. d4 {[%clk 0:03:01]} 3... g6 {[%clk 0:02:57.4]} 4.
Bb2 {[%clk 0:03:01.3]} 4... Bg7 {[%clk 0:02:57.9]} 5. e3 {[%clk 0:03:01.8]} 5...
O-O {[%clk 0:02:58]} 6. Be2 {[%clk 0:03:02.3]} 6... Nbd7 {[%clk 0:02:57.7]} 7.
O-O {[%clk 0:03:02.7]} 7... e5 {[%clk 0:02:58]} 8. dxe5 {[%clk 0:03:03.6]} 8...
Ng4 {[%clk 0:02:58]} 9. c4 {[%clk 0:03:04]} 9... Ngxe5 {[%clk 0:02:57.4]} 10.
Nc3 {[%clk 0:03:04.4]} 10... Re8 {[%clk 0:02:56.7]} 11. Qd2 {[%clk 0:02:56.8]}
11... Nxf3+ {[%clk 0:02:53.7]} 12. Bxf3 {[%clk 0:02:57.7]} 12... Ne5 {[%clk
0:02:54]} 13. Be2 {[%clk 0:02:57.6]} 13... Bd7 {[%clk 0:02:41.6]} 14. Rad1
{[%clk 0:02:47.2]} 14... Qc8 {[%clk 0:02:33.2]} 15. Nd5 {[%clk 0:02:31.8]} 15...
a6 {[%clk 0:02:23.5]} 16. f4 {[%clk 0:02:25]} 16... Ng4 {[%clk 0:02:19.8]} 17.
Bxg7 {[%clk 0:02:23.8]} 17... Kxg7 {[%clk 0:02:20.3]} 18. Bxg4 {[%clk 0:02:24]}
18... Bxg4 {[%clk 0:02:19.1]} 19. Qd4+ {[%clk 0:02:24.6]} 19... Kh6 {[%clk
0:02:14.8]} 20. Rde1 {[%clk 0:01:29.5]} 20... Qd8 {[%clk 0:02:13.4]} 21. h3
{[%clk 0:01:27.4]} 21... Be6 {[%clk 0:02:12.2]} 22. g4 {[%clk 0:01:25.3]} 22...
Bxd5 {[%clk 0:02:10.8]} 23. g5+ {[%clk 0:01:24.9]} 23... Kh5 {[%clk 0:02:09]}
24. Qxd5 {[%clk 0:01:25.3]} 24... Qd7 {[%clk 0:02:05.3]} 25. Qf3+ {[%clk
0:01:25.1]} 25... Kh4 {[%clk 0:02:04.2]} 26. Kh2 {[%clk 0:01:23.3]} 26... f6
{[%clk 0:01:48.6]} 27. Qg3+ {[%clk 0:01:19]} 27... Kh5 {[%clk 0:01:48.3]} 28.
Qf3+ {[%clk 0:01:12.8]} 28... Kh4 {[%clk 0:01:47.8]} 29. Rg1 {[%clk 0:01:07.2]}
29... fxg5 {[%clk 0:01:42.6]} 30. Rxg5 {[%clk 0:01:08.1]} 1-0

[Event "Early-Titled-Tuesday-Blitz-May-07-2024"]
[Site "Chess.com"]
[Date "2024.05.07"]
[Round "3"]
[White "czechbul17"]
[Black "komogro"]
[Result "1-0"]
[WhiteElo "2132"]
[BlackElo "2535"]
[TimeControl "180+1"]
[EndTime "8:29:37 PDT"]
[Termination "czechbul17 won by resignation"]

1. d4 {[%clk 0:03:00.9]} 1... Nf6 {[%clk 0:02:59.2]} 2. c4 {[%clk 0:03:01]} 2...
g6 {[%clk 0:02:57.7]} 3. Nc3 {[%clk 0:03:01]} 3... Bg7 {[%clk 0:02:58.3]} 4. e4
{[%clk 0:03:01.3]} 4... d6 {[%clk 0:02:59]} 5. f4 {[%clk 0:03:01.9]} 5... O-O
{[%clk 0:02:59.5]} 6. Nf3 {[%clk 0:03:02.6]} 6... c5 {[%clk 0:02:59.9]} 7. d5
{[%clk 0:03:03.3]} 7... b5 {[%clk 0:03:00.3]} 8. cxb5 {[%clk 0:03:03.5]} 8... a6
{[%clk 0:02:59.9]} 9. a4 {[%clk 0:03:04.1]} 9... axb5 {[%clk 0:02:54.8]} 10.
Bxb5 {[%clk 0:03:05]} 10... Ba6 {[%clk 0:02:55.3]} 11. Bd2 {[%clk 0:03:05.5]}
11... c4 {[%clk 0:02:40.7]} 12. O-O {[%clk 0:03:01.9]} 12... Qb6+ {[%clk
0:02:40.1]} 13. Kh1 {[%clk 0:03:02.4]} 13... Ng4 {[%clk 0:02:39.6]} 14. Qe2
{[%clk 0:02:43.7]} 14... Nd7 {[%clk 0:02:32.5]} 15. Bxd7 {[%clk 0:02:38.8]}
15... Nf6 {[%clk 0:02:28.4]} 16. Bb5 {[%clk 0:02:37.1]} 16... Rac8 {[%clk
0:02:27.1]} 17. e5 {[%clk 0:02:21.7]} 17... dxe5 {[%clk 0:02:21.6]} 18. fxe5
{[%clk 0:02:21.8]} 18... Ng4 {[%clk 0:02:17.4]} 19. Bd7 {[%clk 0:01:54.5]} 19...
Qxb2 {[%clk 0:02:04.4]} 20. Bxg4 {[%clk 0:01:46.6]} 20... Rcd8 {[%clk
0:01:58.2]} 21. Rfb1 {[%clk 0:01:42]} 21... Qc2 {[%clk 0:01:55.2]} 22. Nd4
{[%clk 0:01:35.3]} 22... Qd3 {[%clk 0:01:54.2]} 23. Qxd3 {[%clk 0:01:35.4]}
23... cxd3 {[%clk 0:01:55.1]} 24. Nc6 {[%clk 0:01:35.6]} 24... Rde8 {[%clk
0:01:52.1]} 25. Nb5 {[%clk 0:01:33.1]} 25... Bb7 {[%clk 0:01:43.5]} 26. Bd7
{[%clk 0:01:30]} 26... Bxc6 {[%clk 0:01:41]} 27. dxc6 {[%clk 0:01:29.3]} 27...
Rd8 {[%clk 0:01:37.6]} 28. Ba5 {[%clk 0:01:27.8]} 28... Ra8 {[%clk 0:01:37.5]}
29. Bc3 {[%clk 0:01:26.3]} 29... d2 {[%clk 0:01:25.1]} 30. Rd1 {[%clk
0:01:21.3]} 30... Rfb8 {[%clk 0:01:19.1]} 31. Rxd2 {[%clk 0:01:21.1]} 31... Rxb5
{[%clk 0:01:18.6]} 32. axb5 {[%clk 0:01:21]} 32... Rxa1+ {[%clk 0:01:17.9]} 33.
Bxa1 {[%clk 0:01:21.1]} 1-0

[Event "Early-Titled-Tuesday-Blitz-May-07-2024"]
[Site "Chess.com"]
[Date "2024.05.07"]
[Round "3"]
[White "ural58"]
[Black "GoltsevDmitry2000"]
[Result "0-1"]
[WhiteElo "2518"]
[BlackElo "2788"]
[TimeControl "180+1"]
[EndTime "8:29:41 PDT"]
[Termination "GoltsevDmitry2000 won by resignation"]

1. e4 {[%clk 0:03:00.9]} 1... e6 {[%clk 0:02:59]} 2. d4 {[%clk 0:03:00.1]} 2...
d5 {[%clk 0:02:59.9]} 3. Nc3 {[%clk 0:02:59.4]} 3... c5 {[%clk 0:03:00.1]} 4.
exd5 {[%clk 0:02:58.1]} 4... exd5 {[%clk 0:03:01]} 5. Bb5+ {[%clk 0:02:50.4]}
5... Nc6 {[%clk 0:02:58.6]} 6. Nf3 {[%clk 0:02:49.3]} 6... Nf6 {[%clk 0:02:59]}
7. O-O {[%clk 0:02:46.6]} 7... Be7 {[%clk 0:02:56.4]} 8. dxc5 {[%clk 0:02:46.4]}
8... Bxc5 {[%clk 0:02:57.3]} 9. Re1+ {[%clk 0:02:44.2]} 9... Be6 {[%clk
0:02:56.7]} 10. Nd4 {[%clk 0:02:36.6]} 10... O-O {[%clk 0:02:54.1]} 11. Nxe6
{[%clk 0:02:09.1]} 11... fxe6 {[%clk 0:02:53.6]} 12. Bxc6 {[%clk 0:02:01.9]}
12... bxc6 {[%clk 0:02:47.9]} 13. Qe2 {[%clk 0:01:48.1]} 13... Ng4 {[%clk
0:02:40.8]} 14. Qxg4 {[%clk 0:01:39.2]} 14... Bxf2+ {[%clk 0:02:35.5]} 15. Kh1
{[%clk 0:01:32]} 15... Bxe1 {[%clk 0:02:35.3]} 16. Qxe6+ {[%clk 0:01:31.7]}
16... Kh8 {[%clk 0:02:31.4]} 17. Qxe1 {[%clk 0:01:32.1]} 17... Qe7 {[%clk
0:02:29]} 18. Bd2 {[%clk 0:01:29.7]} 18... Qb4 {[%clk 0:02:21.2]} 19. Rb1 {[%clk
0:01:15]} 19... Rae8 {[%clk 0:02:19.9]} 20. Qg1 {[%clk 0:01:03.9]} 20... Qc4
{[%clk 0:02:18.6]} 21. b3 {[%clk 0:00:58.9]} 21... Qg4 {[%clk 0:02:15.8]} 22.
Re1 {[%clk 0:00:55.5]} 22... Qg6 {[%clk 0:02:11.7]} 23. Rxe8 {[%clk 0:00:52.2]}
23... Rxe8 {[%clk 0:02:06.6]} 24. Qd1 {[%clk 0:00:50]} 24... Rf8 {[%clk
0:02:04.8]} 25. h3 {[%clk 0:00:47.2]} 25... Rf2 {[%clk 0:02:04]} 26. Qg1 {[%clk
0:00:29.3]} 26... Rxd2 {[%clk 0:02:02.2]} 27. Nd1 {[%clk 0:00:25.2]} 27... Qxc2
{[%clk 0:02:00.3]} 28. Ne3 {[%clk 0:00:25]} 28... Qd3 {[%clk 0:02:00]} 0-1

[Event "Early-Titled-Tuesday-Blitz-May-07-2024"]
[Site "Chess.com"]
[Date "2024.05.07"]
[Round "3"]
[White "SchmakAttack"]
[Black "Oleksandr_Bortnyk"]
[Result "0-1"]
[WhiteElo "2773"]
[BlackElo "3058"]
[TimeControl "180+1"]
[EndTime "8:29:46 PDT"]
[Termination "Oleksandr_Bortnyk won by resignation"]

1. Nf3 {[%clk 0:03:00.9]} 1... Nf6 {[%clk 0:02:57]} 2. g3 {[%clk 0:03:01.3]}
2... g6 {[%clk 0:02:56.5]} 3. Bg2 {[%clk 0:03:01.8]} 3... Bg7 {[%clk 0:02:57.4]}
4. O-O {[%clk 0:03:02.1]} 4... O-O {[%clk 0:02:58.3]} 5. d4 {[%clk 0:03:01.9]}
5... d6 {[%clk 0:02:58.7]} 6. Nc3 {[%clk 0:03:02.3]} 6... Nbd7 {[%clk
0:02:56.6]} 7. e4 {[%clk 0:03:01.6]} 7... e5 {[%clk 0:02:57.1]} 8. h3 {[%clk
0:03:02]} 8... b6 {[%clk 0:02:57.7]} 9. Re1 {[%clk 0:02:49.4]} 9... Bb7 {[%clk
0:02:57.9]} 10. d5 {[%clk 0:02:38.1]} 10... a5 {[%clk 0:02:57.8]} 11. Be3 {[%clk
0:02:32.4]} 11... Nc5 {[%clk 0:02:53.6]} 12. Nd2 {[%clk 0:02:30.2]} 12... Nfd7
{[%clk 0:02:53]} 13. Nc4 {[%clk 0:02:01.7]} 13... f5 {[%clk 0:02:47.7]} 14. exf5
{[%clk 0:01:46.2]} 14... gxf5 {[%clk 0:02:48.6]} 15. f4 {[%clk 0:01:46.4]} 15...
Ba6 {[%clk 0:02:37.1]} 16. Na3 {[%clk 0:01:26.5]} 16... e4 {[%clk 0:02:19.5]}
17. Bd4 {[%clk 0:01:19.7]} 17... Nf6 {[%clk 0:02:07.9]} 18. Nab5 {[%clk
0:01:13.1]} 18... a4 {[%clk 0:02:06.1]} 19. Bf2 {[%clk 0:00:56.6]} 19... Qd7
{[%clk 0:02:02.7]} 20. Nd4 {[%clk 0:00:55]} 20... Bc4 {[%clk 0:02:03.4]} 21. Ne6
{[%clk 0:00:55.1]} 21... Nxe6 {[%clk 0:02:01.6]} 22. dxe6 {[%clk 0:00:54.6]}
22... Bxe6 {[%clk 0:01:57.5]} 23. Qd2 {[%clk 0:00:45.3]} 23... d5 {[%clk
0:01:56.2]} 24. b3 {[%clk 0:00:39.7]} 24... axb3 {[%clk 0:01:54.6]} 25. axb3
{[%clk 0:00:40.6]} 25... c5 {[%clk 0:01:54.6]} 26. Na4 {[%clk 0:00:39.4]} 26...
Qc6 {[%clk 0:01:44.5]} 27. c3 {[%clk 0:00:39.6]} 27... Rfd8 {[%clk 0:01:37.9]}
28. Rad1 {[%clk 0:00:38.3]} 28... d4 {[%clk 0:01:37.5]} 29. cxd4 {[%clk
0:00:32.7]} 29... Bxb3 {[%clk 0:01:37.3]} 0-1

[Event "Early-Titled-Tuesday-Blitz-May-07-2024"]
[Site "Chess.com"]
[Date "2024.05.07"]
[Round "3"]
[White "PIwan"]
[Black "lacafi"]
[Result "1-0"]
[WhiteElo "2422"]
[BlackElo "2237"]
[TimeControl "180+1"]
[EndTime "8:29:51 PDT"]
[Termination "PIwan won by checkmate"]

1. c4 {[%clk 0:02:59.5]} 1... f5 {[%clk 0:02:59.6]} 2. d4 {[%clk 0:02:58.7]}
2... Nf6 {[%clk 0:02:59.7]} 3. Nc3 {[%clk 0:02:59.1]} 3... g6 {[%clk 0:02:59.7]}
4. h4 {[%clk 0:02:59.5]} 4... Bg7 {[%clk 0:02:58.8]} 5. h5 {[%clk 0:02:59.8]}
5... c6 {[%clk 0:02:58]} 6. e4 {[%clk 0:02:56.9]} 6... fxe4 {[%clk 0:02:54.2]}
7. h6 {[%clk 0:02:53.3]} 7... Bf8 {[%clk 0:02:53.6]} 8. Nge2 {[%clk 0:02:53.5]}
8... d5 {[%clk 0:02:52.7]} 9. Ng3 {[%clk 0:02:51.4]} 9... e6 {[%clk 0:02:35.6]}
10. Qb3 {[%clk 0:02:51.3]} 10... Be7 {[%clk 0:02:34.1]} 11. Be2 {[%clk
0:02:46.1]} 11... O-O {[%clk 0:02:31.4]} 12. Be3 {[%clk 0:02:46.2]} 12... Nbd7
{[%clk 0:02:05.2]} 13. O-O-O {[%clk 0:02:45.5]} 13... a6 {[%clk 0:01:51.8]} 14.
Kb1 {[%clk 0:02:44.6]} 14... b5 {[%clk 0:01:48.6]} 15. c5 {[%clk 0:02:41.9]}
15... a5 {[%clk 0:01:47.8]} 16. a4 {[%clk 0:02:40]} 16... b4 {[%clk 0:01:46]}
17. Na2 {[%clk 0:02:39.7]} 17... Ba6 {[%clk 0:01:46.1]} 18. Nc1 {[%clk
0:02:39.6]} 18... Bxe2 {[%clk 0:01:44.1]} 19. Ncxe2 {[%clk 0:02:40.5]} 19... Ng4
{[%clk 0:01:39.5]} 20. Nf4 {[%clk 0:02:39.9]} 20... Rf6 {[%clk 0:01:29.2]} 21.
Nxe4 {[%clk 0:02:24.1]} 21... Rxf4 {[%clk 0:00:47.6]} 22. Bxf4 {[%clk 0:02:25]}
22... Nf8 {[%clk 0:00:36.7]} 23. Qh3 {[%clk 0:02:06.9]} 23... dxe4 {[%clk
0:00:20.5]} 24. Qxg4 {[%clk 0:02:06.4]} 24... Qd5 {[%clk 0:00:21.2]} 25. Bd6
{[%clk 0:01:56.3]} 25... Bxd6 {[%clk 0:00:19.7]} 26. cxd6 {[%clk 0:01:57.2]}
26... Qxd6 {[%clk 0:00:19.6]} 27. Qxe4 {[%clk 0:01:56.9]} 27... Rd8 {[%clk
0:00:19.4]} 28. Rhe1 {[%clk 0:01:55.7]} 28... b3 {[%clk 0:00:14.1]} 29. Qe5
{[%clk 0:01:53.7]} 29... Qb4 {[%clk 0:00:13.8]} 30. Qg7# {[%clk 0:01:53.5]} 1-0

[Event "Early-Titled-Tuesday-Blitz-May-07-2024"]
[Site "Chess.com"]
[Date "2024.05.07"]
[Round "3"]
[White "JRenatoMaranhao"]
[Black "watermelonattackk"]
[Result "0-1"]
[WhiteElo "2113"]
[BlackElo "2553"]
[TimeControl "180+1"]
[EndTime "8:29:52 PDT"]
[Termination "watermelonattackk won by resignation"]

1. e4 {[%clk 0:03:00.9]} 1... e5 {[%clk 0:02:59.4]} 2. Nf3 {[%clk 0:02:59.2]}
2... Nc6 {[%clk 0:02:59.4]} 3. Bb5 {[%clk 0:02:59.2]} 3... a6 {[%clk 0:02:59.4]}
4. Ba4 {[%clk 0:02:59.6]} 4... Nf6 {[%clk 0:02:59.7]} 5. O-O {[%clk 0:02:59.8]}
5... Be7 {[%clk 0:02:59.9]} 6. Re1 {[%clk 0:02:59.7]} 6... b5 {[%clk 0:03:00.3]}
7. Bb3 {[%clk 0:03:00.2]} 7... d6 {[%clk 0:03:01]} 8. h3 {[%clk 0:02:59.6]} 8...
Na5 {[%clk 0:03:00]} 9. d3 {[%clk 0:02:53.3]} 9... O-O {[%clk 0:02:59.6]} 10. c3
{[%clk 0:02:40.1]} 10... Nxb3 {[%clk 0:02:53.4]} 11. axb3 {[%clk 0:02:41]} 11...
c5 {[%clk 0:02:53.2]} 12. Nbd2 {[%clk 0:02:36]} 12... h6 {[%clk 0:02:53.1]} 13.
Nf1 {[%clk 0:02:35.9]} 13... Be6 {[%clk 0:02:52.5]} 14. d4 {[%clk 0:02:16.8]}
14... Qc7 {[%clk 0:02:49.5]} 15. d5 {[%clk 0:02:05.7]} 15... Bd7 {[%clk
0:02:49.3]} 16. g4 {[%clk 0:01:31]} 16... Nh7 {[%clk 0:02:42.4]} 17. Ng3 {[%clk
0:01:15.9]} 17... a5 {[%clk 0:02:38.1]} 18. Qe2 {[%clk 0:00:34]} 18... Bg5
{[%clk 0:02:33.3]} 19. Nf5 {[%clk 0:00:23.9]} 19... Rfb8 {[%clk 0:02:27.1]} 20.
h4 {[%clk 0:00:15.5]} 20... Bxc1 {[%clk 0:02:25.1]} 21. Rexc1 {[%clk 0:00:16.4]}
21... Qd8 {[%clk 0:02:21.2]} 22. Kg2 {[%clk 0:00:06.8]} 22... Nf6 {[%clk
0:02:19.2]} 23. Kg3 {[%clk 0:00:07]} 23... Nxg4 {[%clk 0:02:12.1]} 24. Kxg4
{[%clk 0:00:03.3]} 24... g6 {[%clk 0:02:12.4]} 25. Rg1 {[%clk 0:00:03]} 25...
gxf5+ {[%clk 0:02:11.8]} 26. exf5 {[%clk 0:00:03.9]} 26... Qf6 {[%clk
0:02:09.6]} 27. Qe4 {[%clk 0:00:02.4]} 27... Kh7 {[%clk 0:02:09.8]} 28. Kh3
{[%clk 0:00:01.1]} 0-1

[Event "Early-Titled-Tuesday-Blitz-May-07-2024"]
[Site "Chess.com"]
[Date "2024.05.07"]
[Round "3"]
[White "RonitLevitan"]
[Black "MaiqMaster"]
[Result "0-1"]
[WhiteElo "2249"]
[BlackElo "2484"]
[TimeControl "180+1"]
[EndTime "8:29:54 PDT"]
[Termination "MaiqMaster won by checkmate"]

1. d4 {[%clk 0:02:59]} 1... d5 {[%clk 0:02:59.2]} 2. Nc3 {[%clk 0:02:57]} 2...
Nf6 {[%clk 0:02:59]} 3. Bf4 {[%clk 0:02:57.5]} 3... g6 {[%clk 0:02:59.4]} 4. e3
{[%clk 0:02:48]} 4... Bg7 {[%clk 0:02:59.2]} 5. Be2 {[%clk 0:02:47.9]} 5... O-O
{[%clk 0:02:57.8]} 6. Nf3 {[%clk 0:02:34.4]} 6... c5 {[%clk 0:02:56.1]} 7. dxc5
{[%clk 0:02:33]} 7... Be6 {[%clk 0:02:46.9]} 8. Nd4 {[%clk 0:02:31.7]} 8... Nfd7
{[%clk 0:02:38]} 9. b4 {[%clk 0:02:26.7]} 9... Nc6 {[%clk 0:02:35.6]} 10. h4
{[%clk 0:02:20.3]} 10... Nxb4 {[%clk 0:02:32.2]} 11. h5 {[%clk 0:02:20.1]} 11...
Nxc5 {[%clk 0:02:27.5]} 12. hxg6 {[%clk 0:02:19.5]} 12... fxg6 {[%clk 0:02:22]}
13. Rb1 {[%clk 0:02:11.7]} 13... Nc6 {[%clk 0:02:19.7]} 14. Ncb5 {[%clk
0:02:05.8]} 14... Nxd4 {[%clk 0:02:14.3]} 15. Nxd4 {[%clk 0:01:56.9]} 15... Bf7
{[%clk 0:02:13.6]} 16. Nf3 {[%clk 0:01:41]} 16... Ne4 {[%clk 0:02:04.7]} 17.
Rxb7 {[%clk 0:01:34]} 17... Qa5+ {[%clk 0:02:01.5]} 18. Kf1 {[%clk 0:01:33.5]}
18... Nc3 {[%clk 0:01:53.6]} 19. Qd2 {[%clk 0:01:29.2]} 19... Qxa2 {[%clk
0:01:50.8]} 20. g4 {[%clk 0:01:27.7]} 20... Nxe2 {[%clk 0:01:50.8]} 21. Qxe2
{[%clk 0:01:22.6]} 21... d4 {[%clk 0:01:51]} 22. Kg2 {[%clk 0:01:16.2]} 22...
Bd5 {[%clk 0:01:50.8]} 23. Rxe7 {[%clk 0:01:13.9]} 23... Rae8 {[%clk 0:01:48.8]}
24. Rxe8 {[%clk 0:01:13.1]} 24... Rxe8 {[%clk 0:01:49.7]} 25. Qd2 {[%clk
0:01:00.1]} 25... Bxf3+ {[%clk 0:01:47.3]} 26. Kxf3 {[%clk 0:00:53.5]} 26...
Qd5+ {[%clk 0:01:47.8]} 27. Kg3 {[%clk 0:00:47.9]} 27... Qxh1 {[%clk 0:01:47.5]}
28. exd4 {[%clk 0:00:45.4]} 28... Qe4 {[%clk 0:01:44.1]} 29. d5 {[%clk
0:00:40.9]} 29... Rf8 {[%clk 0:01:42.2]} 30. Be3 {[%clk 0:00:34.9]} 30... Rf3+
{[%clk 0:01:39.6]} 31. Kh2 {[%clk 0:00:34.5]} 31... Qxg4 {[%clk 0:01:38.1]} 32.
d6 {[%clk 0:00:32]} 32... Rh3# {[%clk 0:01:37.5]} 0-1

[Event "Early-Titled-Tuesday-Blitz-May-07-2024"]
[Site "Chess.com"]
[Date "2024.05.07"]
[Round "3"]
[White "Sofia_Blokhin"]
[Black "Casper"]
[Result "0-1"]
[WhiteElo "2270"]
[BlackElo "2500"]
[TimeControl "180+1"]
[EndTime "8:30:01 PDT"]
[Termination "Casper won by resignation"]

1. d4 {[%clk 0:03:00.9]} 1... d5 {[%clk 0:02:59.5]} 2. c4 {[%clk 0:02:59.9]}
2... e6 {[%clk 0:02:58]} 3. Nc3 {[%clk 0:02:59.5]} 3... a6 {[%clk 0:02:55.1]} 4.
Nf3 {[%clk 0:02:57.8]} 4... Nf6 {[%clk 0:02:54.7]} 5. e3 {[%clk 0:02:56.1]} 5...
Be7 {[%clk 0:02:51.1]} 6. Bd3 {[%clk 0:02:54.2]} 6... dxc4 {[%clk 0:02:50.6]} 7.
Bxc4 {[%clk 0:02:53.8]} 7... O-O {[%clk 0:02:51.5]} 8. a4 {[%clk 0:02:49.6]}
8... c5 {[%clk 0:02:51.3]} 9. O-O {[%clk 0:02:48.7]} 9... Nc6 {[%clk 0:02:51.4]}
10. b3 {[%clk 0:02:37.4]} 10... Qc7 {[%clk 0:02:45.4]} 11. Bb2 {[%clk
0:02:27.6]} 11... cxd4 {[%clk 0:02:45.6]} 12. exd4 {[%clk 0:02:26.2]} 12... Rd8
{[%clk 0:02:46.5]} 13. Ne2 {[%clk 0:02:09.3]} 13... Nb4 {[%clk 0:02:29.2]} 14.
a5 {[%clk 0:01:55.6]} 14... Nbd5 {[%clk 0:02:24.1]} 15. Bd3 {[%clk 0:01:45.9]}
15... Bd7 {[%clk 0:02:22.1]} 16. Ne5 {[%clk 0:01:42.6]} 16... Be8 {[%clk
0:02:21.8]} 17. g4 {[%clk 0:01:29.6]} 17... Rac8 {[%clk 0:02:14.4]} 18. g5
{[%clk 0:01:28.3]} 18... Nd7 {[%clk 0:02:14.2]} 19. h4 {[%clk 0:01:19.8]} 19...
Nxe5 {[%clk 0:02:06.8]} 20. dxe5 {[%clk 0:01:18.3]} 20... Nb4 {[%clk 0:02:07.7]}
21. Nf4 {[%clk 0:01:13.3]} 21... Nxd3 {[%clk 0:02:03.7]} 22. Nxd3 {[%clk
0:01:12.3]} 22... Bb5 {[%clk 0:02:04.6]} 23. Rc1 {[%clk 0:01:09.4]} 23... Qb8
{[%clk 0:02:02.5]} 24. Rxc8 {[%clk 0:01:04.8]} 24... Qxc8 {[%clk 0:02:03.4]} 25.
Qc1 {[%clk 0:00:50.1]} 25... Bxd3 {[%clk 0:02:02.6]} 26. Qxc8 {[%clk 0:00:45.8]}
26... Rxc8 {[%clk 0:02:03.5]} 27. Rd1 {[%clk 0:00:44.9]} 27... Bc2 {[%clk
0:02:03.8]} 28. Rd7 {[%clk 0:00:40.1]} 28... Bb4 {[%clk 0:02:02.5]} 29. Rxb7
{[%clk 0:00:39]} 29... Bxa5 {[%clk 0:02:03.1]} 30. Ra7 {[%clk 0:00:33.9]} 30...
Bd3 {[%clk 0:02:02.7]} 31. Ba3 {[%clk 0:00:26.6]} 31... g6 {[%clk 0:02:01.5]}
32. Be7 {[%clk 0:00:23.5]} 32... Bd8 {[%clk 0:01:59.6]} 33. Bd6 {[%clk
0:00:22.6]} 33... Bb6 {[%clk 0:01:56.5]} 34. Rb7 {[%clk 0:00:17.3]} 34... Rc1+
{[%clk 0:01:55.7]} 35. Kg2 {[%clk 0:00:16.5]} 35... Be4+ {[%clk 0:01:55.1]} 0-1

[Event "Early-Titled-Tuesday-Blitz-May-07-2024"]
[Site "Chess.com"]
[Date "2024.05.07"]
[Round "3"]
[White "wonderfultime"]
[Black "Mischuk_D"]
[Result "1-0"]
[WhiteElo "3100"]
[BlackElo "2805"]
[TimeControl "180+1"]
[EndTime "8:30:14 PDT"]
[Termination "wonderfultime won by resignation"]

1. d4 {[%clk 0:03:00.9]} 1... d5 {[%clk 0:02:59.6]} 2. Nf3 {[%clk 0:03:01.2]}
2... e6 {[%clk 0:02:57.5]} 3. Bf4 {[%clk 0:03:01.6]} 3... Nf6 {[%clk 0:02:57.1]}
4. e3 {[%clk 0:03:02]} 4... c5 {[%clk 0:02:57.8]} 5. c3 {[%clk 0:03:02.3]} 5...
Bd6 {[%clk 0:02:57.3]} 6. Nbd2 {[%clk 0:03:02.7]} 6... O-O {[%clk 0:02:56.6]} 7.
Bd3 {[%clk 0:03:03.1]} 7... Bxf4 {[%clk 0:02:55.9]} 8. exf4 {[%clk 0:03:03.7]}
8... b6 {[%clk 0:02:50.6]} 9. Qe2 {[%clk 0:03:03.5]} 9... a5 {[%clk 0:02:50.5]}
10. O-O {[%clk 0:03:04]} 10... Ba6 {[%clk 0:02:50.4]} 11. Bxa6 {[%clk
0:03:04.7]} 11... Nxa6 {[%clk 0:02:50.5]} 12. Rfe1 {[%clk 0:03:05.3]} 12... cxd4
{[%clk 0:02:49.6]} 13. Nxd4 {[%clk 0:03:05.3]} 13... Re8 {[%clk 0:02:44.4]} 14.
Rad1 {[%clk 0:03:00.7]} 14... Nc5 {[%clk 0:02:44.4]} 15. N2f3 {[%clk 0:03:00.7]}
15... Qc7 {[%clk 0:02:43.6]} 16. g3 {[%clk 0:02:57.5]} 16... h6 {[%clk
0:02:43.2]} 17. Ne5 {[%clk 0:02:47.9]} 17... Nce4 {[%clk 0:02:41.1]} 18. c4
{[%clk 0:02:39.8]} 18... dxc4 {[%clk 0:02:37.1]} 19. Qxc4 {[%clk 0:02:39.7]}
19... Qb7 {[%clk 0:02:29]} 20. Qc6 {[%clk 0:02:25.2]} 20... Qxc6 {[%clk
0:02:25.9]} 21. Ndxc6 {[%clk 0:02:25.7]} 21... Rac8 {[%clk 0:02:19.8]} 22. Rd4
{[%clk 0:02:16.6]} 22... Nc5 {[%clk 0:02:19.2]} 23. Red1 {[%clk 0:02:16.4]}
23... Rc7 {[%clk 0:02:18.2]} 24. Rd8 {[%clk 0:02:11]} 24... Rxd8 {[%clk
0:02:18.3]} 25. Rxd8+ {[%clk 0:02:11.9]} 25... Kh7 {[%clk 0:02:18.7]} 26. Rf8
{[%clk 0:02:09.2]} 26... Na4 {[%clk 0:02:11.3]} 27. b3 {[%clk 0:02:00.4]} 27...
Nc3 {[%clk 0:02:11]} 28. Nd8 {[%clk 0:01:56.6]} 28... Nxa2 {[%clk 0:01:44.3]}
29. Ndxf7 {[%clk 0:01:49.5]} 29... Ng8 {[%clk 0:01:41.2]} 30. Rb8 {[%clk
0:01:38.6]} 30... Nc1 {[%clk 0:01:27.4]} 31. Nd8 {[%clk 0:01:27.7]} 31... Nxb3
{[%clk 0:01:19]} 32. Nxe6 {[%clk 0:01:27.3]} 32... Ra7 {[%clk 0:01:17.1]} 33.
Nf8+ {[%clk 0:01:27]} 1-0

[Event "Early-Titled-Tuesday-Blitz-May-07-2024"]
[Site "Chess.com"]
[Date "2024.05.07"]
[Round "3"]
[White "karinachess1"]
[Black "Ramla2020"]
[Result "1-0"]
[WhiteElo "2613"]
[BlackElo "2438"]
[TimeControl "180+1"]
[EndTime "8:30:18 PDT"]
[Termination "karinachess1 won by resignation"]

1. d4 {[%clk 0:03:00.9]} 1... Nf6 {[%clk 0:02:26]} 2. c4 {[%clk 0:02:59.9]} 2...
e6 {[%clk 0:02:26.1]} 3. Nc3 {[%clk 0:02:58.7]} 3... Bb4 {[%clk 0:02:25.9]} 4.
a3 {[%clk 0:02:59.3]} 4... Bxc3+ {[%clk 0:02:25.3]} 5. bxc3 {[%clk 0:03:00.2]}
5... d5 {[%clk 0:02:25.5]} 6. f3 {[%clk 0:03:00.5]} 6... c5 {[%clk 0:02:24.4]}
7. cxd5 {[%clk 0:03:00.6]} 7... exd5 {[%clk 0:02:22.8]} 8. e3 {[%clk 0:03:00.7]}
8... O-O {[%clk 0:02:21.5]} 9. Bd3 {[%clk 0:02:59.6]} 9... Re8 {[%clk
0:02:20.4]} 10. Ne2 {[%clk 0:03:00.1]} 10... Nc6 {[%clk 0:02:16.7]} 11. O-O
{[%clk 0:03:00.2]} 11... b6 {[%clk 0:01:56.7]} 12. Ng3 {[%clk 0:03:00.2]} 12...
a5 {[%clk 0:01:56.4]} 13. Re1 {[%clk 0:02:59.4]} 13... h5 {[%clk 0:01:54.5]} 14.
Bb2 {[%clk 0:02:58.2]} 14... h4 {[%clk 0:01:54]} 15. Nf5 {[%clk 0:02:52.9]}
15... Bxf5 {[%clk 0:01:47]} 16. Bxf5 {[%clk 0:02:52.5]} 16... g6 {[%clk
0:01:47.9]} 17. Bc2 {[%clk 0:02:46.8]} 17... Qd6 {[%clk 0:01:44.6]} 18. e4
{[%clk 0:02:45.6]} 18... dxe4 {[%clk 0:01:42.3]} 19. fxe4 {[%clk 0:02:46.5]}
19... Rad8 {[%clk 0:01:22.7]} 20. e5 {[%clk 0:02:42]} 20... Nxe5 {[%clk
0:00:46.2]} 21. dxe5 {[%clk 0:02:42.4]} 21... Qc6 {[%clk 0:00:46.4]} 22. Qe2
{[%clk 0:02:31.3]} 22... Nd5 {[%clk 0:00:41.5]} 23. c4 {[%clk 0:02:09.5]} 23...
Nf4 {[%clk 0:00:39.2]} 24. Qg4 {[%clk 0:02:06.7]} 24... Rd2 {[%clk 0:00:27.8]}
25. Be4 {[%clk 0:02:01.7]} 25... Qc7 {[%clk 0:00:16.7]} 26. Qxf4 {[%clk
0:01:40.2]} 26... Rxb2 {[%clk 0:00:16.2]} 27. Bd5 {[%clk 0:01:40.7]} 27... Re7
{[%clk 0:00:14.9]} 28. Qf6 {[%clk 0:01:37.2]} 28... Kh7 {[%clk 0:00:12.6]} 29.
e6 {[%clk 0:01:35.4]} 29... Kg8 {[%clk 0:00:13.5]} 30. exf7+ {[%clk 0:01:34.1]}
1-0